bitfinex/quotes_BTCUSD_20250518
["timestamp","ask_amount","ask_price","bid_price","bid_amount"]
[1747591415250,0.21036407,104580.0,104570.0,0.56905387]
[1747591415479,0.00956123,104580.0,104570.0,0.57861565]
[1747591415746,0.01912264,104580.0,104570.0,0.57861574]
[1747591415958,0.00956123,104580.0,104570.0,0.57861574]
[1747591416161,0.21035904,104590.0,104580.0,0.21036462]
[1747591416380,0.21035904,104590.0,104580.0,0.20080302]
[1747591416381,0.21034396,104590.0,104580.0,0.20080302]
[1747591416608,0.21990583,104590.0,104580.0,0.00956187]
[1747591416833,0.0095605,104590.0,104580.0,0.2199263]
[1747591417044,0.20079301,104600.0,104590.0,0.19122287]
[1747591417266,0.20079274,104600.0,104580.0,0.21036388]
[1747591417475,0.20078337,104590.0,104580.0,0.19124115]
[1747591417690,0.21992621,104580.0,104570.0,0.341]
[1747591417900,0.00956132,104580.0,104570.0,0.56094725]
[1747591418114,0.00956132,104580.0,104570.0,0.56950967]
[1747591418335,0.00956123,104580.0,104570.0,0.56950893]
[1747591418550,0.0105605,104590.0,104580.0,0.21036498]
[1747591418768,0.21035323,104600.0,104580.0,0.22948735]
[1747591418979,0.21991291,104600.0,104590.0,0.00956114]
[1747591419178,0.22291291,104600.0,104590.0,0.02012219]
[1747591419395,0.22291291,104600.0,104590.0,0.01056114]
[1747591419612,0.19124115,104580.0,104570.0,0.341]
[1747591419848,0.21036462,104580.0,104570.0,0.001]
[1747591420282,0.00956233,104570.0,104560.0,0.25626845]
[1747591420498,0.00956214,104570.0,104560.0,0.57714206]
[1747591420751,0.21036462,104580.0,104570.0,0.20082232]
[1747591420752,0.21036407,104580.0,104570.0,0.20082232]
[1747591420960,0.21992639,104580.0,104560.0,0.59581834]
[1747591421156,0.22948826,104580.0,104570.0,0.00956288]
[1747591421376,0.21038455,104570.0,104560.0,0.36628803]
[1747591421585,0.19124115,104580.0,104560.0,0.58169307]
[1747591421809,0.19124115,104580.0,104570.0,0.19125944]
[1747591422067,0.21036397,104580.0,104570.0,0.2027348]
[1747591422294,0.21990519,104590.0,104570.0,0.75364753]
[1747591422295,0.21034414,104590.0,104570.0,0.75364753]
[1747591422508,0.00956123,104580.0,104570.0,0.73752306]
[1747591422728,0.03824584,104580.0,104570.0,0.73752306]
[1747591422954,0.03824584,104580.0,104570.0,0.006]
[1747591422955,0.21136471,104580.0,104570.0,0.006]
[1747591423183,0.37337411,104580.0,104570.0,0.003]
[1747591423422,0.38791496,104580.0,104570.0,0.003]
[1747591423656,0.38791496,104580.0,104570.0,0.006]
[1747591424091,0.26282222,104570.0,104560.0,0.002]
[1747591424312,0.38860347,104570.0,104560.0,0.002]
[1747591424543,0.29813162,104570.0,104560.0,0.002]
[1747591425209,0.37467247,104570.0,104560.0,0.002]
[1747591425443,0.36013162,104570.0,104560.0,0.002]
[1747591425664,0.29813162,104570.0,104560.0,0.005]
[1747591425892,0.23695664,104590.0,104570.0,0.21993885]
[1747591425893,0.19122287,104590.0,104570.0,0.21993885]
[1747591426116,0.20080293,104580.0,104560.0,0.26975591]
[1747591426327,0.24307235,104570.0,104560.0,0.23207822]
[1747591426540,0.23350938,104570.0,104560.0,0.2416421]
[1747591426755,0.23907235,104570.0,104560.0,0.01110958]
[1747591426971,0.21038437,104570.0,104560.0,0.22151462]
[1747591427191,0.21994715,104570.0,104560.0,0.2215148]
[1747591427418,0.01912493,104570.0,104560.0,0.24064174]
[1747591427638,1.02868433,104580.0,104570.0,0.21038473]
[1747591428078,1.2390494,104580.0,104570.0,0.21038482]
[1747591428553,1.2390494,104580.0,104560.0,0.01110958]
[1747591428554,0.2103851,104570.0,104560.0,0.01110958]
[1747591428768,0.21038455,104570.0,104560.0,0.21240522]
[1747591428979,0.21038455,104570.0,104560.0,0.22196874]
[1747591429187,0.01056214,104570.0,104560.0,0.23453198]
[1747591429396,0.02968707,104570.0,104560.0,0.22496874]
[1747591429619,0.02968707,104570.0,104560.0,0.22796874]
[1747591429876,0.24007226,104570.0,104560.0,0.21840522]
[1747591430089,0.22094779,104570.0,104560.0,0.008]
[1747591430297,0.21138437,104570.0,104560.0,0.22796818]
[1747591430503,0.22094715,104570.0,104560.0,0.21840485]
[1747591430718,0.22094715,104570.0,104560.0,0.008]
[1747591431146,0.22094715,104570.0,104560.0,0.01712523]
[1747591431147,0.29913162,104570.0,104560.0,0.01712523]
[1747591431358,0.36333162,104570.0,104560.0,0.01712523]
[1747591432003,0.37787247,104570.0,104560.0,0.01712523]
[1747591432222,0.37787247,104570.0,104560.0,0.01412523]
[1747591432443,0.3925372,104570.0,104560.0,0.01112523]
[1747591432677,0.37799635,104570.0,104560.0,0.01112523]
[1747591432893,0.38199635,104570.0,104560.0,0.003]
[1747591433517,0.43326876,104570.0,104560.0,0.003]
[1747591433776,0.38199635,104570.0,104560.0,0.003]
[1747591433985,0.38099635,104570.0,104560.0,0.003]
[1747591434191,0.38499635,104570.0,104560.0,0.003]
[1747591434408,0.30613162,104570.0,104560.0,0.003]
[1747591434623,0.33623162,104570.0,104560.0,0.003]
[1747591434837,0.30613162,104570.0,104560.0,0.003]
[1747591435718,0.39613162,104570.0,104560.0,0.003]
[1747591436619,0.11712466,104570.0,104560.0,0.22296828]
[1747591436834,0.13625013,104570.0,104560.0,0.22296846]
[1747591437263,0.13625013,104570.0,104560.0,0.2645317]
[1747591437264,0.098,104570.0,104560.0,0.2645317]
[1747591437484,0.004,104570.0,104560.0,0.2645317]
[1747591437714,0.01356224,104570.0,104560.0,0.27364848]
[1747591437932,0.006,104570.0,104560.0,1.13998662]
[1747591438350,0.004,104570.0,104560.0,0.64674848]
[1747591438561,1.02868506,104580.0,104570.0,0.5503851]
[1747591438775,1.21036425,104580.0,104570.0,0.34]
[1747591438988,1.21036425,104580.0,104570.0,0.00956297]
[1747591438989,1.21036471,104580.0,104570.0,0.00956297]
[1747591439200,1.21036471,104580.0,104570.0,0.01912585]
[1747591439407,0.02012456,104570.0,104560.0,0.55395775]
[1747591439613,0.23050948,104570.0,104560.0,0.55395821]
[1747591439827,0.02012456,104570.0,104560.0,0.56152154]
[1747591440037,0.02968716,104570.0,104560.0,0.57108515]
[1747591440251,0.30769422,104570.0,104560.0,0.01111678]
[1747591441533,0.29813162,104570.0,104560.0,0.01111678]
[1747591441747,0.29813162,104570.0,104560.0,0.01211678]
[1747591442174,0.29913162,104570.0,104560.0,0.005]
[1747591442844,0.36413162,104570.0,104560.0,0.005]
[1747591443493,0.29913162,104570.0,104560.0,0.005]
[1747591444624,0.01056224,104570.0,104560.0,0.21731779]
[1747591444841,0.02968726,104570.0,104560.0,0.2345317]
[1747591445056,0.02012466,104570.0,104560.0,0.2345317]
[1747591445279,0.02968717,104570.0,104560.0,0.2345317]
[1747591445493,0.02968717,104570.0,104560.0,0.2436629]
[1747591445714,0.02012466,104570.0,104560.0,0.2436629]
[1747591445929,0.22094734,104570.0,104560.0,0.02369499]
[1747591446149,0.22094734,104570.0,104560.0,0.23409966]
[1747591446150,0.21138446,104570.0,104560.0,0.23409966]
[1747591446360,0.22094724,104570.0,104560.0,0.22453633]
[1747591446580,0.02012456,104570.0,104560.0,0.23409948]
[1747591446787,0.211384,104570.0,104560.0,0.23409957]
[1747591446998,0.22094669,104570.0,104560.0,0.21497272]
[1747591447209,0.22094669,104570.0,104560.0,0.22453633]
[1747591447414,0.211384,104570.0,104560.0,0.2436629]
[1747591447624,0.02968716,104570.0,104560.0,0.2436629]
[1747591447846,0.001,104570.0,104560.0,0.2436629]
[1747591448063,0.001,104570.0,104560.0,1.31398862]
[1747591448279,0.001,104570.0,104560.0,1.31498862]
[1747591448722,0.001,104570.0,104560.0,1.32498862]
[1747591448967,0.8947557,104580.0,104570.0,0.28324725]
[1747591449215,0.8947557,104580.0,104570.0,0.87379479]
[1747591449434,0.65523242,104580.0,104570.0,2.67551615]
[1747591449652,0.002,104610.0,104600.0,0.55988415]
[1747591449870,0.00214217,104610.0,104600.0,1.11642229]
[1747591450095,0.00214217,104610.0,104600.0,1.18173169]
[1747591450585,0.00214217,104610.0,104600.0,1.21373169]
[1747591450824,0.00214217,104610.0,104600.0,0.7641656]
[1747591451040,0.00214217,104610.0,104600.0,1.25740374]
[1747591451519,0.00214217,104610.0,104600.0,1.22286289]
[1747591451744,0.01170075,104610.0,104600.0,0.66832475]
[1747591451977,0.01170066,104610.0,104600.0,0.57101535]
[1747591452211,0.02125933,104610.0,104600.0,0.57101563]
[1747591452439,0.01170066,104610.0,104600.0,0.58057521]
[1747591452877,0.22200459,104610.0,104600.0,0.24057576]
[1747591453098,0.01170066,104610.0,104600.0,0.25013534]
[1747591453325,0.00214217,104610.0,104600.0,0.25013534]
[1747591453548,0.00214217,104610.0,104600.0,1.24278288]
[1747591454504,0.00214217,104610.0,104600.0,1.27732373]
[1747591455397,0.001,104630.0,104620.0,0.28194213]
[1747591455625,0.001,104630.0,104620.0,0.87248967]
[1747591455841,0.001,104630.0,104620.0,1.22248967]
[1747591456054,0.001,104630.0,104620.0,0.72925153]
[1747591456266,0.001,104630.0,104620.0,0.75492117]
[1747591456485,0.01055675,104630.0,104620.0,0.21028437]
[1747591456695,0.01055675,104630.0,104620.0,0.21984222]
[1747591456937,0.001,104630.0,104620.0,0.22939998]
[1747591457149,0.01055666,104630.0,104620.0,0.22939998]
[1747591457369,0.00955767,104620.0,104610.0,0.20073003]
[1747591457589,0.2208213,104630.0,104620.0,0.20072624]
[1747591457809,0.21126391,104630.0,104620.0,0.21228427]
[1747591458031,0.001,104630.0,104620.0,0.23139997]
[1747591458275,0.001,104630.0,104620.0,0.22939997]
[1747591460323,0.01055675,104630.0,104620.0,0.22939997]
[1747591460531,0.2303775,104630.0,104620.0,0.20072624]
[1747591460760,0.001,104630.0,104620.0,0.22084203]
[1747591462516,0.22082111,104630.0,104620.0,0.001]
[1747591462745,0.86360471,104630.0,104620.0,0.001]
[1747591462972,0.37217367,104630.0,104620.0,0.001]
[1747591463870,0.21986952,104610.0,104600.0,0.20076471]
[1747591464087,0.21986952,104610.0,104600.0,0.21032466]
[1747591464327,0.21031085,104610.0,104590.0,0.21609277]
[1747591464556,0.0095594,104600.0,104590.0,0.56004328]
[1747591464777,0.2103103,104610.0,104600.0,0.21032439]
[1747591465002,0.00955949,104600.0,104590.0,0.55048251]
[1747591465220,0.0095594,104600.0,104590.0,0.55048287]
[1747591465458,0.37372404,104600.0,104590.0,0.00014217]
[1747591465671,0.37133379,104600.0,104590.0,0.00014217]
[1747591466341,0.37333379,104600.0,104590.0,0.00014217]
[1747591466575,0.36377402,104600.0,104590.0,0.00014217]
[1747591466846,0.36477402,104600.0,104590.0,0.00014217]
[1747591468137,0.37433379,104600.0,104590.0,0.00014217]
[1747591468383,0.37433379,104600.0,104590.0,0.22195965]
[1747591468384,0.003,104600.0,104590.0,0.22195965]
[1747591468589,0.003,104600.0,104590.0,0.20092609]
[1747591468590,0.22288324,104600.0,104590.0,0.20092609]
[1747591468817,0.2324431,104600.0,104590.0,0.00014217]
[1747591469050,0.21332448,104600.0,104590.0,0.00014217]
[1747591469488,0.22288397,104600.0,104590.0,0.00970331]
[1747591469700,0.22288397,104600.0,104590.0,0.00014217]
[1747591469911,0.23244401,104600.0,104590.0,0.00014217]
[1747591470127,0.20376416,104600.0,104590.0,0.00014217]
[1747591470345,0.20376416,104600.0,104590.0,0.22195937]
[1747591470346,0.003,104600.0,104590.0,0.22195937]
[1747591470566,0.003,104600.0,104590.0,0.22004736]
[1747591470981,0.003,104600.0,104590.0,0.55748736]
[1747591471612,0.003,104600.0,104590.0,0.54792686]
[1747591471846,0.003,104600.0,104590.0,0.56704795]
[1747591472053,0.003,104600.0,104590.0,0.5665788]
[1747591472270,0.003,104600.0,104590.0,0.5761393]
[1747591474474,0.19420458,104600.0,104590.0,0.54745744]
[1747591474680,0.21332366,104600.0,104590.0,0.35865249]
[1747591474894,0.21332356,104600.0,104590.0,0.55943622]
[1747591475103,0.20376398,104600.0,104590.0,0.57855731]
[1747591475310,0.22488536,104590.0,104580.0,0.01335773]
[1747591475529,0.26804143,104560.0,104550.0,0.03033377]
[1747591475776,0.36410546,104550.0,104540.0,0.002]
[1747591475995,1.06612615,104530.0,104520.0,0.002]
[1747591476236,0.55050551,104510.0,104500.0,0.03991721]
[1747591476452,6.15490727,104510.0,104500.0,0.03991721]
[1747591476681,1.12428996,104510.0,104500.0,0.03991721]
[1747591477108,6.27159936,104510.0,104500.0,0.03991721]
[1747591477557,1.30633808,104510.0,104500.0,0.03991721]
[1747591477767,1.39208648,104510.0,104500.0,0.03991721]
[1747591478206,1.37970379,104510.0,104500.0,0.03991721]
[1747591478649,1.37970379,104510.0,104500.0,0.002]
[1747591479125,1.38970379,104510.0,104500.0,0.002]
[1747591479372,1.39770379,104510.0,104500.0,0.003]
[1747591479642,1.29039439,104510.0,104500.0,0.003]
[1747591481265,1.22039439,104510.0,104500.0,0.003]
[1747591481913,1.19465354,104510.0,104500.0,0.003]
[1747591482137,1.24099439,104510.0,104500.0,0.003]
[1747591482325,1.33830379,104510.0,104500.0,0.003]
[1747591483224,1.34830379,104510.0,104500.0,0.003]
[1747591485944,0.21054581,104490.0,104480.0,0.002]
[1747591486167,0.86305512,104490.0,104480.0,0.002]
[1747591486379,0.83095512,104490.0,104480.0,0.002]
[1747591486602,0.30785521,104490.0,104480.0,0.002]
[1747591486853,5.85746461,104490.0,104480.0,0.002]
[1747591487094,6.38490537,104490.0,104480.0,0.002]
[1747591487521,1.10578602,104470.0,104460.0,0.002]
[1747591487775,0.61288611,104470.0,104460.0,0.002]
[1747591487984,1.28501305,104470.0,104460.0,0.002]
[1747591488211,1.21812145,104470.0,104460.0,0.002]
[1747591488913,6.28826333,104470.0,104460.0,0.002]
[1747591489105,0.76811153,104450.0,104440.0,0.002]
[1747591489313,0.87996178,104450.0,104440.0,0.002]
[1747591489519,1.23441217,104450.0,104440.0,0.002]
[1747591489749,1.34172157,104450.0,104440.0,0.002]
[1747591489967,1.24441217,104450.0,104440.0,0.002]
[1747591490399,0.72648623,104450.0,104440.0,0.002]
[1747591490607,0.35518623,104450.0,104440.0,0.002]
[1747591490810,0.35818623,104450.0,104440.0,0.003]
[1747591491024,0.32538623,104450.0,104440.0,0.003]
[1747591491664,0.31293584,104450.0,104440.0,0.003]
[1747591491872,0.30993584,104450.0,104440.0,0.002]
[1747591492088,0.30793584,104450.0,104440.0,0.002]
[1747591492307,0.31093584,104450.0,104440.0,0.002]
[1747591492507,0.31393584,104450.0,104440.0,0.002]
[1747591493850,5.8402076,104450.0,104420.0,0.0039151]
[1747591494072,0.24210713,104410.0,104400.0,0.03825872]
[1747591494294,0.73549222,104410.0,104400.0,0.03825872]
[1747591494516,0.33581123,104410.0,104400.0,0.03825872]
[1747591494767,0.21070713,104410.0,104400.0,0.03825872]
[1747591495183,0.30801653,104410.0,104400.0,0.03825872]
[1747591495425,0.30801653,104410.0,104400.0,0.03873413]
[1747591495629,0.35395738,104410.0,104400.0,0.03873413]
[1747591495844,0.88559036,104410.0,104390.0,0.0160915]
[1747591496034,0.85863915,104400.0,104390.0,0.01656399]
[1747591496276,1.21078458,104400.0,104390.0,0.01656399]
[1747591496476,0.70285864,104400.0,104390.0,0.01656399]
[1747591496688,0.66985864,104400.0,104390.0,0.01656399]
[1747591496903,0.76716802,104400.0,104390.0,0.01656399]
[1747591497112,0.66985864,104400.0,104390.0,0.01656399]
[1747591497543,0.29845864,104400.0,104390.0,0.01656399]
[1747591498203,0.29845864,104400.0,104380.0,0.002]
[1747591498204,0.25870935,104390.0,104380.0,0.002]
[1747591498470,0.47472815,104390.0,104380.0,0.002]
[1747591498683,0.38741875,104390.0,104380.0,0.002]
[1747591499132,0.38741875,104390.0,104360.0,0.00206]
[1747591499133,0.0314,104370.0,104360.0,0.00206]
[1747591499319,0.34685342,104370.0,104360.0,0.00206]
[1747591499550,0.4747667,104370.0,104360.0,0.00206]
[1747591499777,0.50139275,104370.0,104360.0,0.00206]
[1747591499992,0.99257157,104370.0,104360.0,0.00206]
[1747591500207,1.04993076,104370.0,104360.0,0.00206]
[1747591500443,1.39093076,104370.0,104360.0,0.00206]
[1747591500639,1.39093076,104370.0,104340.0,0.002]
[1747591500640,1.07561338,104350.0,104340.0,0.002]
[1747591500895,0.30813769,104350.0,104340.0,0.002]
[1747591501976,0.30961047,104350.0,104340.0,0.002]
[1747591502855,0.30002724,104350.0,104340.0,0.21284868]
[1747591503084,0.30961083,104350.0,104340.0,0.002]
[1747591503309,0.0276074,104330.0,104320.0,0.54999493]
[1747591503531,0.02875141,104340.0,104330.0,0.22045367]
[1747591503747,0.12606081,104340.0,104330.0,0.22045367]
[1747591503973,0.37815826,104340.0,104320.0,0.54040923]
[1747591504204,0.01917039,104320.0,104310.0,0.23381965]
[1747591504460,0.00958506,104320.0,104310.0,0.2434059]
[1747591504670,0.10789381,104330.0,104320.0,0.22047434]
[1747591504970,0.001,104330.0,104320.0,0.28677434]
[1747591505177,0.0095835,104340.0,104330.0,0.22043782]
[1747591505390,0.03122098,104350.0,104340.0,0.21084868]
[1747591505572,0.12853038,104350.0,104340.0,0.21084868]
[1747591505809,0.32977618,104350.0,104340.0,0.21084868]
[1747591506232,0.32019369,104350.0,104340.0,0.22043227]
[1747591506437,0.10936467,104350.0,104340.0,0.23001567]
[1747591506642,0.12853029,104350.0,104340.0,0.22043227]
[1747591506826,0.32977609,104350.0,104340.0,0.21084877]
[1747591507063,0.1285301,104350.0,104340.0,0.23001585]
[1747591507275,0.09978218,104350.0,104340.0,0.23201585]
[1747591507492,0.09978218,104350.0,104340.0,0.29731585]
[1747591507713,0.00247278,104350.0,104340.0,0.29731585]
[1747591507930,0.00347278,104350.0,104340.0,0.29831585]
[1747591508351,0.01205508,104350.0,104340.0,0.29731585]
[1747591508570,0.00247278,104350.0,104340.0,0.63731585]
[1747591508758,0.00347278,104350.0,104340.0,1.13230584]
[1747591508998,0.00347278,104350.0,104340.0,1.13330584]
[1747591509429,0.00247278,104350.0,104340.0,1.22761524]
[1747591509853,0.002,104370.0,104360.0,0.62568983]
[1747591510069,0.002,104370.0,104360.0,1.13671923]
[1747591510283,0.002,104370.0,104360.0,1.03940983]
[1747591511508,0.002,104370.0,104360.0,1.63070922]
[1747591512223,0.002,104370.0,104360.0,1.13671923]
[1747591512737,0.002,104370.0,104360.0,1.04440983]
[1747591512951,0.002,104370.0,104360.0,1.14171923]
[1747591513879,0.002,104370.0,104360.0,1.64825091]
[1747591514568,0.002,104370.0,104360.0,1.14171923]
[1747591517024,0.002,104370.0,104360.0,1.64825091]
[1747591517244,0.002,104370.0,104360.0,1.04440983]
[1747591518110,0.22236799,104370.0,104360.0,0.6103643]
[1747591518352,0.30969738,104370.0,104360.0,0.005]
[1747591518567,0.38617556,104370.0,104360.0,0.005]
[1747591519243,0.41857556,104370.0,104360.0,0.005]
[1747591519467,0.44957556,104370.0,104360.0,0.005]
[1747591519691,0.95632283,104370.0,104360.0,0.005]
[1747591519898,0.97086368,104370.0,104360.0,0.005]
[1747591520092,0.24322829,104350.0,104340.0,0.01619129]
[1747591520396,0.44801587,104350.0,104340.0,0.00114165]
[1747591520842,0.95476314,104350.0,104340.0,0.00114165]
[1747591521525,0.34053769,104350.0,104340.0,0.00114165]
[1747591522199,0.30813769,104350.0,104340.0,0.00114165]
[1747591522652,0.32730311,104350.0,104340.0,0.20240655]
[1747591522866,0.30813805,104350.0,104340.0,0.00114165]
[1747591523299,0.30913805,104350.0,104340.0,0.00314165]
[1747591524199,0.30913805,104350.0,104340.0,0.00214165]
[1747591524424,0.10789198,104350.0,104340.0,0.00214165]
[1747591524650,0.31871962,104350.0,104340.0,0.21299033]
[1747591524859,0.32830266,104350.0,104340.0,0.01172561]
[1747591525068,0.32830257,104350.0,104340.0,0.01172561]
[1747591525323,0.11747419,104350.0,104340.0,0.22257392]
[1747591525540,0.0105823,104350.0,104340.0,1.23215732]
[1747591525757,0.001,104350.0,104340.0,1.23215732]
[1747591526235,0.001,104350.0,104340.0,1.29505732]
[1747591526883,0.001,104350.0,104340.0,1.28333171]
[1747591527102,0.001,104350.0,104340.0,1.29291567]
[1747591527529,0.001,104350.0,104340.0,2.14222507]
[1747591527745,0.001,104350.0,104340.0,2.15222507]
[1747591528166,0.0016,104370.0,104360.0,0.62328983]
[1747591528373,0.0016,104370.0,104360.0,1.03704983]
[1747591529219,0.0016,104370.0,104360.0,1.13435923]
[1747591529429,0.0016,104370.0,104360.0,1.13535923]
[1747591529861,0.0016,104370.0,104360.0,1.13635923]
[1747591530074,0.0016,104370.0,104360.0,1.13835923]
[1747591530527,0.0016,104370.0,104360.0,1.66217623]
[1747591530741,0.0016,104370.0,104360.0,1.58194893]
[1747591531150,0.002,104390.0,104380.0,0.6241476]
[1747591531365,0.002,104390.0,104380.0,0.721457]
[1747591531794,0.002,104390.0,104380.0,0.5603476]
[1747591532223,0.003,104390.0,104380.0,0.5969476]
[1747591532423,0.00314184,104390.0,104380.0,0.727457]
[1747591532900,0.00414184,104390.0,104380.0,1.23874533]
[1747591533115,0.00414184,104390.0,104380.0,0.392457]
[1747591533337,0.00414184,104390.0,104380.0,0.328657]
[1747591533571,0.00414184,104390.0,104380.0,0.392457]
[1747591534208,0.00414184,104390.0,104380.0,0.89874533]
[1747591535179,0.00414184,104390.0,104380.0,0.392457]
[1747591535642,0.00414184,104390.0,104380.0,0.89874533]
[1747591536060,0.00414184,104390.0,104380.0,1.23874533]
[1747591537148,0.00414184,104390.0,104380.0,1.25014208]
[1747591538777,0.00414184,104390.0,104380.0,1.66374208]
[1747591538986,0.00414184,104390.0,104380.0,1.15489375]
[1747591539198,0.08062002,104390.0,104380.0,1.15489375]
[1747591539412,0.00414184,104390.0,104380.0,1.15489375]
[1747591540054,0.00414184,104390.0,104380.0,1.66118208]
[1747591541925,0.00414184,104390.0,104380.0,1.63058208]
[1747591542140,0.00414184,104390.0,104380.0,1.59738208]
[1747591542769,0.29136789,104390.0,104380.0,0.02239675]
[1747591542969,0.30094661,104390.0,104380.0,0.02239675]
[1747591543205,0.38867674,104390.0,104380.0,0.02239675]
[1747591543400,0.2913677,104390.0,104380.0,0.02239675]
[1747591544009,0.2913677,104390.0,104380.0,0.011]
[1747591544216,0.2903677,104390.0,104380.0,0.005]
[1747591544418,0.29894706,104390.0,104370.0,0.22036686]
[1747591544618,0.29894706,104390.0,104380.0,0.006]
[1747591544837,0.2893677,104390.0,104380.0,0.006]
[1747591545058,0.29894716,104390.0,104370.0,0.23952789]
[1747591545323,0.30094716,104390.0,104370.0,0.23952789]
[1747591545606,0.2913677,104390.0,104370.0,0.23952789]
[1747591545796,0.30094661,104390.0,104380.0,0.00958037]
[1747591546002,0.29894661,104390.0,104370.0,0.22994678]
[1747591546854,0.30852597,104390.0,104370.0,0.22994678]
[1747591547095,0.21288861,104390.0,104380.0,0.00958019]
[1747591547327,0.2224677,104390.0,104380.0,0.00958019]
[1747591547542,0.00214184,104390.0,104380.0,0.73621594]
[1747591547743,0.01172065,104390.0,104380.0,0.2299278]
[1747591547889,0.01272065,104390.0,104380.0,0.23950762]
[1747591548101,0.21388888,104390.0,104380.0,0.20118777]
[1747591548305,0.21388888,104390.0,104380.0,0.001]
[1747591548507,0.21388888,104390.0,104380.0,0.20218777]
[1747591548722,0.22346797,104390.0,104380.0,0.001]
[1747591548975,0.22346889,104390.0,104380.0,0.001]
[1747591549799,0.21388943,104390.0,104380.0,0.01058037]
[1747591550130,0.02229965,104390.0,104380.0,0.23092779]
[1747591550348,0.01272056,104390.0,104380.0,0.23092779]
[1747591551694,0.01272047,104390.0,104380.0,0.23092779]
[1747591551931,0.00314184,104390.0,104380.0,0.23092779]
[1747591555971,0.01272065,104390.0,104380.0,0.2309276]
[1747591556478,0.00314184,104390.0,104380.0,0.22134787]
[1747591556709,0.00314184,104390.0,104380.0,0.2309276]
[1747591556710,0.01272056,104390.0,104380.0,0.2309276]
[1747591557005,0.00314184,104390.0,104380.0,0.2309276]
[1747591557233,0.00314184,104390.0,104380.0,0.328237]
[1747591557911,0.27339466,104400.0,104390.0,0.22032649]
[1747591560303,0.01915754,104390.0,104380.0,0.21558406]
[1747591560515,0.51482198,104400.0,104390.0,0.21074768]
[1747591560724,0.51482198,104400.0,104390.0,0.2299054]
[1747591560958,0.51482198,104400.0,104390.0,0.22132659]
[1747591561174,0.71940956,104400.0,104390.0,0.001]
[1747591561415,0.64293138,104400.0,104390.0,0.003]
[1747591561636,0.64293184,104400.0,104390.0,0.003]
[1747591561857,0.27339466,104400.0,104390.0,0.23290559]
[1747591562332,0.27339466,104400.0,104390.0,0.57290559]
[1747591563993,0.27339466,104400.0,104390.0,0.23290559]
[1747591564173,0.48412161,104400.0,104390.0,0.20416859]
[1747591564402,0.50327841,104400.0,104390.0,0.20874768]
[1747591564671,0.29255073,104400.0,104390.0,0.2279054]
[1747591564889,0.27339466,104400.0,104390.0,0.2279054]
[1747591565786,0.08266011,104380.0,104370.0,0.01139675]
[1747591566065,0.37157745,104380.0,104370.0,0.01153859]
[1747591566530,0.01915937,104380.0,104370.0,0.01153859]
[1747591566711,0.22034687,104380.0,104370.0,0.01153859]
[1747591566965,0.31765691,104380.0,104370.0,0.01153859]
[1747591567186,0.34885691,104380.0,104370.0,0.01153859]
[1747591567397,0.35843719,104380.0,104370.0,0.01153859]
[1747591567609,0.35843701,104380.0,104370.0,0.01153859]
[1747591567831,0.36043701,104380.0,104370.0,0.01153859]
[1747591568252,0.36343701,104380.0,104370.0,0.01153859]
[1747591568457,0.35385719,104380.0,104370.0,0.01153859]
[1747591568895,0.36589726,104380.0,104370.0,0.01153859]
[1747591569118,0.36589726,104380.0,104370.0,0.00014184]
[1747591569351,0.38505764,104380.0,104370.0,0.00014184]
[1747591569591,0.20618731,104380.0,104370.0,0.01020528]
[1747591569818,0.005,104380.0,104370.0,0.57009148]
[1747591570069,0.005,104380.0,104370.0,0.72940088]
[1747591570494,0.27439466,104400.0,104390.0,0.22032649]
[1747591570708,0.27439466,104400.0,104390.0,0.97388649]
[1747591571618,0.27439466,104400.0,104390.0,1.11339264]
[1747591572025,0.27739466,104400.0,104390.0,1.11339264]
[1747591572241,0.27439466,104400.0,104390.0,1.11339264]
[1747591572457,0.27639466,104400.0,104390.0,1.11339264]
[1747591572672,0.27639466,104400.0,104390.0,1.14459264]
[1747591572892,0.27439466,104400.0,104390.0,1.14459264]
[1747591573335,0.002,104410.0,104400.0,0.2203054]
[1747591573560,0.002,104450.0,104440.0,0.02872351]
[1747591573812,0.002,104450.0,104440.0,0.63425916]
[1747591574034,0.002,104450.0,104440.0,1.07109042]
[1747591574905,0.00213646,104450.0,104440.0,1.07109042]
[1747591575159,0.00513646,104450.0,104440.0,1.07109042]
[1747591575383,0.00513646,104450.0,104440.0,1.15392141]
[1747591575605,0.00613646,104450.0,104440.0,1.15392141]
[1747591576680,0.00613646,104450.0,104440.0,1.12512141]
[1747591576899,0.00613646,104450.0,104440.0,1.09362141]
[1747591577740,0.00213646,104450.0,104440.0,1.08222466]
[1747591578356,0.00213646,104450.0,104440.0,1.08322466]
[1747591578919,0.00213646,104450.0,104440.0,1.09277327]
[1747591579080,0.00213646,104450.0,104440.0,1.08322466]
[1747591579701,0.00213646,104450.0,104440.0,1.14622466]
[1747591580901,0.00213646,104450.0,104440.0,1.09259662]
[1747591583672,0.00213646,104450.0,104440.0,2.09259662]
[1747591584099,0.00213646,104450.0,104440.0,2.15559662]
[1747591585370,0.00213646,104450.0,104440.0,3.59193962]
[1747591585571,0.00213646,104450.0,104440.0,3.12686162]
[1747591585775,0.00213646,104450.0,104440.0,3.14140247]
[1747591586182,0.00213646,104450.0,104440.0,3.15445211]
[1747591586609,0.00213646,104450.0,104440.0,3.15645211]
[1747591587050,0.00213646,104450.0,104440.0,3.1792133]
[1747591587256,0.00213646,104450.0,104440.0,3.19800739]
[1747591587686,0.00313646,104450.0,104440.0,3.20300739]
[1747591587892,0.00313646,104450.0,104440.0,3.20000739]
[1747591588120,0.00413646,104450.0,104440.0,3.24652597]
[1747591588337,0.00413646,104450.0,104440.0,2.23370569]
[1747591588537,0.00413646,104450.0,104440.0,2.15616484]
[1747591588744,0.00413646,104450.0,104440.0,2.14679288]
[1747591590401,0.00413646,104450.0,104440.0,2.21279288]
[1747591591172,0.00413646,104450.0,104440.0,2.14679288]
[1747591591605,0.00413646,104450.0,104440.0,1.28634935]
[1747591591820,0.00413646,104450.0,104440.0,1.30549808]
[1747591592039,0.00413646,104450.0,104440.0,1.74280748]
[1747591592462,0.00313646,104450.0,104440.0,1.73312842]
[1747591592879,0.00313646,104450.0,104440.0,1.73612842]
[1747591593516,0.00213646,104450.0,104440.0,1.73112842]
[1747591593722,0.00213646,104450.0,104440.0,1.73312842]
[1747591594047,0.00213646,104450.0,104440.0,1.72812842]
[1747591594250,0.00213646,104450.0,104440.0,1.73212842]
[1747591594498,0.00213646,104450.0,104440.0,1.73712842]
[1747591594706,0.00213646,104450.0,104440.0,1.72575784]
[1747591595061,0.00213646,104450.0,104440.0,1.74080748]
[1747591597036,0.00213646,104450.0,104440.0,2.66548048]
[1747591597245,0.00213646,104450.0,104440.0,1.74080748]